bitfinex/quotes_ETHUSD_20250214
["timestamp","ask_amount","ask_price","bid_price","bid_amount"]
[1739533525616,3.71958,2688.5,2688.4,0.05563007]
[1739533525777,4.540533,2688.5,2688.4,0.05563007]
[1739533526320,4.540493,2688.5,2688.4,0.05563007]
[1739533528508,0.820953,2688.5,2688.4,0.05563007]
[1739533528806,3.71954,2688.5,2688.4,0.05563007]
[1739533529619,4.49014,2688.5,2688.4,0.05563007]
[1739533529820,3.71968,2688.4,2688.3,0.005]
[1739533530181,3.71968,2688.4,2688.3,0.06085045]
[1739533530391,3.71968,2688.4,2688.3,0.005]
[1739533530609,4.540662,2688.4,2688.3,0.005]
[1739533531583,3.71968,2688.4,2688.3,0.005]
[1739533531783,3.71948,2688.6,2688.3,0.06090271]
[1739533532554,0.7706,2688.7,2688.3,0.06090271]
[1739533532826,3.71935,2688.7,2688.3,0.06090271]
[1739533533322,3.71946,2688.6,2688.3,0.06090271]
[1739533534012,3.71968,2688.4,2688.3,0.06090271]
[1739533534411,3.7195,2688.6,2688.3,0.06090271]
[1739533534785,3.71968,2688.4,2688.3,0.06090271]
[1739533535727,4.463598,2688.4,2688.3,0.06090271]
[1739533536027,3.71955,2688.5,2688.3,0.06090271]
[1739533536230,3.71941,2688.6,2688.3,0.06090271]
[1739533536378,3.71937,2688.7,2688.3,0.06090271]
[1739533536808,7.43874,2688.7,2688.3,0.06090271]
[1739533537125,3.71941,2688.6,2688.3,0.06090271]
[1739533537632,3.71937,2688.7,2688.3,0.06090271]
[1739533537818,7.43875,2688.7,2688.3,0.06090271]
[1739533538930,3.71937,2688.7,2688.3,0.06090271]
[1739533539128,7.43875,2688.7,2688.3,0.06090271]
[1739533539329,3.71937,2688.7,2688.3,0.06090271]
[1739533539494,7.43873,2688.7,2688.3,0.06090271]
[1739533539815,3.71909,2688.9,2688.3,0.06090271]
[1739533540011,3.7192,2688.8,2688.3,0.06090271]
[1739533540211,3.71931,2688.7,2688.3,0.06090271]
[1739533540590,3.7192,2688.8,2688.3,0.06090271]
[1739533540805,7.4384,2688.8,2688.3,0.06090271]
[1739533541340,3.7193,2688.7,2688.3,0.06090271]
[1739533541540,3.71904,2688.9,2688.4,6.69084887]
[1739533541904,7.43812,2688.9,2688.5,0.05561528]
[1739533542513,3.71915,2688.8,2688.5,0.05561528]
[1739533542736,4.47310193,2689.2,2688.5,0.05561528]
[1739533542942,3.71913,2688.8,2688.5,0.05561528]
[1739533543625,3.71836,2689.4,2688.8,0.4755]
[1739533543848,3.71816,2689.5,2688.9,6.2696421]
[1739533544163,0.7625,2689.6,2688.9,2.5507721]
[1739533544164,3.71859,2689.2,2688.9,2.5507721]
[1739533544309,3.71853,2689.3,2688.9,2.5507721]
[1739533544497,3.71822,2689.5,2689.0,3.71885]
[1739533544701,4.538089,2689.5,2688.9,6.2696421]
[1739533544916,3.71836,2689.4,2689.1,0.05477063]
[1739533545101,3.71836,2689.4,2689.0,0.05486551]
[1739533545332,3.71843,2689.3,2689.2,0.05461306]
[1739533545653,3.71838,2689.4,2689.2,0.05461306]
[1739533545941,3.71838,2689.4,2688.9,9.93348887]
[1739533546249,3.71838,2689.4,2688.9,6.21457887]
[1739533546453,3.71838,2689.4,2689.0,0.05485855]
[1739533546606,3.71817,2689.5,2689.0,0.05485855]
[1739533547101,3.7184,2689.4,2689.0,0.05485855]
[1739533547531,3.71839,2689.4,2689.0,0.05485855]
[1739533547749,7.4368,2689.4,2689.0,0.05485855]
[1739533548047,3.71839,2689.4,2689.0,0.05485855]
[1739533548751,3.71823,2689.5,2689.0,3.77360855]
[1739533548948,3.71823,2689.5,2689.0,0.05485855]
[1739533549156,3.7184,2689.4,2689.0,0.05485855]
[1739533549308,3.71848,2689.3,2689.0,0.05485855]
[1739533549508,3.7184,2689.4,2689.0,0.05485855]
[1739533550117,3.71871,2689.1,2689.0,0.05485855]
[1739533550548,3.71871,2689.1,2688.8,0.4755]
[1739533550748,3.7185,2689.3,2689.0,0.05475406]
[1739533551043,3.7185,2689.3,2689.1,0.05463131]
[1739533551250,3.71799,2689.7,2688.9,6.21458887]
[1739533551555,3.71823,2689.5,2689.2,0.05451205]
[1739533551710,0.57383653,2689.7,2689.2,6.68963887]
[1739533554351,3.71795,2689.7,2689.3,0.05438932]
[1739533554541,3.71766,2689.9,2689.3,1.02881314]
[1739533554710,3.71806,2689.6,2689.3,0.05438932]
[1739533555112,3.7183,2689.4,2689.3,0.05438932]
[1739533555659,3.71846,2689.3,2689.0,0.4755]
[1739533555956,3.71804,2689.6,2689.3,0.05403754]
[1739533556142,3.71804,2689.6,2689.0,0.4755]
[1739533556312,3.71816,2689.5,2689.4,0.05398097]
[1739533556513,3.71816,2689.5,2689.1,3.71868]
[1739533556714,3.71798,2689.7,2689.4,0.05398097]
[1739533556949,3.71809,2689.6,2689.1,3.71863]
[1739533557114,3.71809,2689.6,2689.5,0.05385826]
[1739533557309,4.461682,2689.6,2689.1,3.71863]
[1739533557614,3.71769,2689.9,2689.5,0.05385826]
[1739533557813,3.71769,2689.9,2689.2,2.49566887]
[1739533557814,3.71789,2689.7,2689.6,0.05372163]
[1739533558034,3.71783,2689.8,2689.4,0.4755]
[1739533558318,3.71769,2689.9,2689.5,0.05384433]
[1739533558512,0.371769,2689.9,2689.5,0.05384433]
[1739533558754,3.71755,2690.0,2689.5,3.77193433]
[1739533558961,3.71765,2689.9,2689.5,3.77193433]
[1739533559730,3.71755,2690.0,2689.5,3.77193433]
[1739533560363,0.74407277,2690.2,2689.5,6.2676632]
[1739533560567,0.74407277,2690.2,2689.6,4.94225632]
[1739533560858,3.71741,2690.1,2689.7,0.05353278]
[1739533561031,0.74407277,2690.2,2689.7,0.05353278]
[1739533561233,3.71754,2690.0,2689.7,0.05353278]
[1739533561432,3.71761,2689.9,2689.7,0.05353278]
[1739533561633,3.71754,2690.0,2689.7,0.05353278]
[1739533562968,3.71768,2689.9,2689.7,0.05353278]
[1739533563460,3.71754,2690.0,2689.7,0.05353278]
[1739533565273,3.71754,2690.0,2689.8,0.4755]
[1739533565762,3.71754,2690.0,2689.9,0.05328742]
[1739533565968,3.71727,2690.2,2689.9,0.05328742]
[1739533566119,3.71747,2690.0,2689.9,0.05328742]
[1739533571267,0.7582,2690.5,2689.9,6.26649629]
[1739533571438,3.71712,2690.3,2689.9,2.54895629]
[1739533571647,0.7582,2690.5,2689.9,2.54895629]
[1739533571831,3.7172,2690.2,2689.9,2.54895629]
[1739533572033,3.71741,2690.1,2689.9,2.54895629]
[1739533572232,3.71727,2690.2,2689.9,2.54895629]
[1739533573525,3.71732,2690.2,2689.9,2.54895629]
[1739533574266,3.71732,2690.2,2689.9,0.05328742]
[1739533574770,7.43422,2690.3,2689.9,0.05328742]
[1739533574921,3.71706,2690.3,2689.9,3.77088742]
[1739533575133,4.47509,2690.5,2689.9,6.26655629]
[1739533575134,3.71704,2690.4,2689.9,6.26655629]
[1739533575337,3.71712,2690.3,2689.9,2.54895629]
[1739533575962,3.71712,2690.3,2689.9,2.54607362]
[1739533576167,3.71712,2690.3,2689.9,6.26367362]
[1739533576338,3.71688,2690.5,2689.9,7.60926898]
[1739533576550,3.71692,2690.4,2690.0,3.71746]
[1739533576753,3.71688,2690.5,2690.1,0.4755]
[1739533576953,3.71686,2690.5,2690.1,0.52815221]
[1739533577289,3.717,2690.4,2690.1,0.52815221]
[1739533578067,3.71713,2690.3,2690.1,0.52815221]
[1739533578271,3.71719,2690.2,2690.1,0.05265221]
[1739533578479,3.71719,2690.2,2689.7,0.4755]
[1739533578681,3.71701,2690.4,2689.7,0.4755]
[1739533578853,3.71701,2690.4,2689.8,3.76882388]
[1739533579051,4.54668,2690.6,2689.8,3.76881388]
[1739533579052,3.71706,2690.3,2689.8,3.76881388]
[1739533579279,3.71685,2690.5,2690.0,3.71736]
[1739533579456,3.71698,2690.4,2689.9,2.4927862]
[1739533579652,0.454668,2690.6,2690.1,0.4755]
[1739533579860,0.83,2690.8,2690.2,0.05056545]
[1739533580068,4.46426192,2690.9,2690.2,0.05056545]
[1739533580293,3.71655,2690.7,2690.2,0.05056545]
[1739533580790,3.71671,2690.6,2690.2,0.05056545]
[1739533581152,3.71655,2690.7,2690.2,3.76774545]
[1739533581346,7.43317,2690.7,2690.2,3.76774545]
[1739533581548,4.46432192,2690.9,2690.2,0.05056545]
[1739533581743,4.46432192,2690.9,2690.4,0.4755]
[1739533582046,3.71664,2690.6,2690.5,0.05019755]
[1739533582713,3.71652,2690.7,2690.5,0.05019755]
[1739533582913,4.46430192,2690.9,2690.5,0.05019755]
[1739533583222,3.71643,2690.8,2690.5,0.05019755]
[1739533583624,3.71599,2691.1,2690.5,0.05019755]
[1739533583925,3.71629,2690.9,2690.5,0.05019755]
[1739533584074,3.71595,2691.1,2690.5,0.05019755]
[1739533584274,3.71664,2690.6,2690.5,0.05019755]
[1739533588222,3.71618,2691.0,2690.5,0.05019755]
[1739533588423,3.71623,2690.9,2690.5,0.05019755]
[1739533588924,3.71638,2690.8,2690.5,0.05019755]
[1739533590012,3.7163,2690.9,2690.5,0.05019755]
[1739533590263,3.71637,2690.8,2690.5,0.05019755]
[1739533590577,3.71623,2690.9,2690.5,0.05019755]
[1739533591261,3.71643,2690.8,2690.5,0.05019755]
[1739533591648,3.71623,2690.9,2690.5,0.05019755]
[1739533592064,3.71629,2690.9,2690.5,0.05019755]
[1739533592272,3.71638,2690.8,2690.5,0.05019755]
[1739533592776,3.71637,2690.8,2690.5,0.05019755]
[1739533592960,3.71629,2690.9,2690.5,0.05019755]
[1739533593578,3.71604,2691.1,2690.5,0.72367012]
[1739533593783,0.75883501,2691.3,2690.5,0.72367012]
[1739533593784,0.75883501,2691.3,2690.7,6.20869814]
[1739533593995,3.71575,2691.3,2690.8,3.71632]
[1739533594162,3.71582,2691.2,2690.9,0.4755]
[1739533594362,3.71606,2691.1,2690.9,0.4755]
[1739533594568,3.71606,2691.1,2691.0,0.04915403]
[1739533595494,3.71583,2691.2,2691.0,0.04915403]
[1739533595652,3.71553,2691.4,2691.0,0.04915403]
[1739533595851,7.43116,2691.4,2691.0,0.04915403]
[1739533596048,3.71536,2691.6,2691.0,3.76522403]
[1739533596386,3.7155,2691.5,2691.0,3.76515403]
[1739533596590,3.71555,2691.4,2691.0,0.04915403]
[1739533597182,3.71528,2691.6,2691.0,0.04915403]
[1739533597383,3.71563,2691.4,2691.0,0.04915403]
[1739533597551,7.4313,2691.4,2691.0,0.04915403]
[1739533597752,3.71563,2691.4,2691.0,0.04915403]
[1739533597952,3.71547,2691.5,2691.0,0.04915403]
[1739533598190,3.7156,2691.4,2691.0,0.04915403]
[1739533598373,3.7153,2691.6,2691.0,0.04915403]
[1739533598374,3.7153,2691.6,2691.2,0.4755]
[1739533598547,7.43067,2691.6,2691.2,0.4755]
[1739533598754,3.7154,2691.5,2691.3,0.04858158]
[1739533599154,3.7154,2691.5,2691.2,0.4755]
[1739533599498,3.7154,2691.5,2691.3,0.04858158]
[1739533599968,3.7154,2691.5,2691.2,0.4755]
[1739533600166,3.7154,2691.5,2691.4,0.04845557]
[1739533600369,3.71527,2691.6,2691.2,0.4755]
[1739533600370,3.71553,2691.4,2691.3,0.04857811]
[1739533600556,3.71547,2691.5,2691.2,0.4755]
[1739533600907,3.71532,2691.6,2691.3,0.04857811]
[1739533601062,3.71526,2691.6,2691.3,0.04857811]
[1739533601263,3.71541,2691.5,2691.2,0.4755]
[1739533601597,3.71541,2691.5,2691.3,0.04857811]
[1739533601957,3.71541,2691.5,2691.2,0.4755]
[1739533602168,3.71513,2691.7,2691.4,0.04845557]
[1739533602399,3.71528,2691.6,2691.3,0.04857811]
[1739533602595,3.71528,2691.6,2691.5,0.04833304]
[1739533602759,3.71513,2691.7,2691.4,0.04816406]
[1739533602958,7.43035,2691.7,2691.5,0.04804153]
[1739533603159,3.71526,2691.6,2691.5,0.04804153]
[1739533603361,3.71526,2691.6,2691.2,0.4755]
[1739533603665,3.71505,2691.8,2691.2,1.85788825]
[1739533603860,3.71505,2691.8,2691.3,9.25611474]
[1739533604104,3.71518,2691.7,2691.3,5.54050474]
[1739533604276,3.71527,2691.6,2691.3,5.54050474]
[1739533604478,3.71527,2691.6,2691.4,1.1114193]
[1739533604678,3.71527,2691.6,2691.5,0.0480103]
[1739533605063,3.71527,2691.6,2691.3,5.49221814]
[1739533605366,3.71513,2691.7,2691.4,0.04813283]
[1739533606186,4.50786,2691.9,2691.4,3.76360283]
[1739533606381,3.71486,2691.9,2691.4,4.73675293]
[1739533606783,1.30248766,2692.3,2691.4,4.73675293]
[1739533606784,3.71444,2692.2,2691.7,0.4755]
[1739533607107,3.71457,2692.1,2691.8,2.53986091]
[1739533607469,5.01685766,2692.3,2691.8,2.53986091]
[1739533607669,3.71443,2692.2,2691.8,2.49221814]
[1739533607906,5.01685766,2692.3,2691.8,2.49221814]
[1739533607907,1.30248766,2692.3,2691.9,0.0474613]
[1739533608071,5.01679766,2692.3,2691.9,0.0474613]
[1739533608410,3.71446,2692.2,2691.9,0.0474613]
[1739533608764,3.71441,2692.3,2691.9,0.0474613]
[1739533608988,3.71426,2692.4,2691.9,0.0474613]
[1739533609216,3.71444,2692.2,2691.9,0.0474613]
[1739533609423,3.71438,2692.3,2691.9,0.72048124]
[1739533610212,3.71438,2692.3,2692.0,0.4755]
[1739533610533,3.71438,2692.3,2692.1,0.04710534]
[1739533610734,3.71443,2692.2,2692.1,0.04710534]
[1739533611038,3.71496,2691.9,2691.5,5.49221814]
[1739533611353,3.71496,2691.9,2691.6,0.04768313]
[1739533611889,3.715,2691.8,2691.6,0.04768313]
[1739533612095,3.71512,2691.7,2691.6,0.04768313]
[1739533612664,3.71512,2691.7,2691.4,0.4755]
[1739533612835,3.71512,2691.7,2691.6,0.04768313]
[1739533613039,0.7566,2692.2,2691.5,0.04780565]
[1739533613040,3.71486,2691.9,2691.5,0.04780565]
[1739533613194,0.7566,2692.2,2691.6,0.04768313]
[1739533613394,0.7566,2692.2,2691.4,4.19096]
[1739533613395,3.71489,2691.9,2691.4,4.19096]
[1739533613595,3.71489,2691.9,2691.5,0.719109]
[1739533613843,3.71479,2692.0,2691.5,0.76691465]
[1739533614013,3.71479,2692.0,2691.5,3.25913279]
[1739533614215,0.7566,2692.2,2691.6,1.11655128]
[1739533614414,3.71484,2692.0,2691.7,0.04751894]
[1739533614609,3.71484,2692.0,2691.5,6.92664714]
[1739533614940,3.71441,2692.3,2691.7,3.71504]
[1739533615241,3.71446,2692.2,2691.7,3.71504]
[1739533615427,3.71446,2692.2,2691.8,1.14269837]
[1739533615613,3.71439,2692.3,2691.8,4.85762837]
[1739533615797,3.7145,2692.2,2691.8,1.14269837]
[1739533615997,3.71472,2692.0,2691.8,1.14269837]
[1739533616204,3.71472,2692.0,2691.8,0.04736522]
[1739533616449,3.7145,2692.2,2691.6,3.4755]
[1739533616762,3.71457,2692.1,2691.7,0.04748773]
[1739533617460,3.71473,2692.0,2691.7,0.04748773]
[1739533617965,3.71458,2692.1,2691.7,0.04748773]
[1739533618174,3.7145,2692.2,2691.7,0.04748773]
[1739533618175,3.7145,2692.2,2691.7,5.17905822]
[1739533618459,7.42907,2692.2,2691.7,5.17900822]
[1739533618621,3.7145,2692.2,2691.7,1.46396822]
[1739533619024,3.7145,2692.2,2691.7,5.17906822]
[1739533619441,7.42903,2692.2,2691.7,5.17906822]
[1739533619765,3.71424,2692.4,2692.0,0.4755]
[1739533620175,3.71424,2692.4,2692.1,0.04693881]
[1739533620570,3.71423,2692.4,2692.0,0.02243881]
[1739533620868,3.71397,2692.6,2692.1,0.04526242]
[1739533621063,0.7566,2692.7,2692.1,0.04526242]
[1739533621268,3.71409,2692.5,2692.1,0.04526242]
[1739533621886,0.72991831,2692.8,2692.2,3.0]
[1739533622183,3.71382,2692.7,2692.2,6.71442]
[1739533622385,3.71382,2692.7,2692.3,0.04496548]
[1739533622727,3.71382,2692.7,2692.2,3.0]
[1739533622929,3.71382,2692.7,2692.4,0.04484303]
[1739533623188,3.71405,2692.5,2692.3,0.04496548]
[1739533623324,3.71448,2692.2,2692.0,0.02243881]
[1739533623667,3.71434,2692.3,2692.0,0.02243881]
[1739533624230,3.71457,2692.1,2691.8,0.0224]
[1739533624756,3.71457,2692.1,2691.7,3.0]
[1739533625369,3.71486,2691.9,2691.4,0.0224]
[1739533625531,3.71513,2691.7,2691.4,0.0224]
[1739533625726,3.71513,2691.7,2691.2,9.23041814]
[1739533626262,3.71526,2691.6,2691.2,2.51461814]
[1739533626466,3.7155,2691.5,2690.9,6.20834814]
[1739533626669,3.71526,2691.6,2690.9,7.22321795]
[1739533626822,3.71541,2691.5,2690.9,7.22321795]
[1739533627026,3.71504,2691.8,2690.9,3.50709795]
[1739533627240,3.71504,2691.8,2691.2,2.49221814]
[1739533627673,3.71529,2691.6,2691.2,2.49221814]
[1739533627905,3.71504,2691.8,2691.2,6.20795814]
[1739533628078,3.71512,2691.7,2691.2,6.20795814]
[1739533628279,4.48607,2692.0,2691.3,0.06843787]
[1739533628482,3.71506,2691.8,2691.3,0.06843787]
[1739533628683,3.71537,2691.6,2691.3,0.04603787]
[1739533628895,7.43073,2691.6,2691.0,6.73844]
[1739533629089,3.71536,2691.6,2691.0,6.73844]
[1739533629413,7.43071,2691.6,2691.1,0.04642519]
[1739533629582,3.71508,2691.8,2691.2,7.43144]
[1739533629784,3.71512,2691.7,2691.2,3.71571]
[1739533629980,3.71508,2691.8,2691.3,0.04618008]
[1739533630183,0.7713,2692.0,2691.4,3.71541]
[1739533630369,4.48602,2692.0,2691.5,0.0224]
[1739533630567,8.20084,2692.0,2691.5,0.0224]
[1739533630768,3.71486,2691.9,2691.6,0.04581249]
[1739533630967,4.48602,2692.0,2691.6,0.04581249]
[1739533631171,0.8017,2692.3,2691.8,3.7149]
[1739533631471,3.71415,2692.5,2692.0,0.0224]
[1739533631672,3.71415,2692.5,2692.1,0.04517573]
[1739533631891,3.71416,2692.4,2692.1,0.04517573]
[1739533632267,4.51548,2692.7,2692.1,3.75972573]
[1739533632467,3.71391,2692.6,2692.1,4.1379603]
[1739533633096,3.71369,2692.8,2692.2,3.0224]
[1739533633294,3.7136,2692.8,2692.3,3.75913184]
[1739533633478,3.7136,2692.8,2692.4,0.927375]
[1739533633694,7.42729,2692.8,2692.5,0.04452638]
[1739533633889,3.7136,2692.8,2692.5,0.04452638]
[1739533634091,0.272,2693.4,2692.5,0.04452638]
[1739533634092,3.71388,2692.6,2692.5,0.04452638]
[1739533634292,3.71388,2692.6,2692.2,0.0224]
[1739533634510,3.71388,2692.6,2692.3,0.04472273]
[1739533634713,0.8017,2692.7,2692.3,0.04472273]
[1739533634883,0.8017,2692.7,2692.2,3.73682]
[1739533634884,3.71385,2692.7,2692.2,0.0224]
[1739533635092,3.71385,2692.7,2692.3,0.04472273]
[1739533635312,7.42773,2692.7,2692.2,0.73390746]
[1739533635625,7.42773,2692.7,2692.4,0.04460028]
[1739533635826,7.42773,2692.7,2692.3,0.04472273]
[1739533636026,3.71383,2692.7,2692.5,0.04445358]
[1739533636235,3.71402,2692.5,2692.4,0.04457602]
[1739533636438,3.7137,2692.8,2692.2,3.71434]
[1739533636595,3.71377,2692.7,2692.2,4.05448346]
[1739533636792,0.75430151,2693.2,2692.8,3.72852]
[1739533637099,3.71212,2693.9,2692.6,3.0299]
[1739533637100,0.8017,2693.7,2692.6,8.7724]
[1739533637303,3.7134,2693.0,2692.6,0.0224]
[1739533637512,3.71362,2692.8,2692.5,5.49221814]
[1739533638036,3.71362,2692.8,2692.5,6.04367995]
[1739533638529,3.71362,2692.8,2692.5,3.55146181]
[1739533638729,3.71362,2692.8,2692.2,2.49221814]
[1739533638730,3.71388,2692.6,2692.2,2.49221814]
[1739533639231,3.71388,2692.6,2692.2,5.49221814]
[1739533639404,3.71388,2692.6,2692.2,3.0]
[1739533639605,4.47869,2693.1,2691.9,2.49221814]
[1739533639957,3.71437,2692.3,2691.8,0.0224]
[1739533640094,3.71452,2692.2,2691.8,3.64537181]
[1739533640514,3.71437,2692.3,2691.8,3.0224]
[1739533641133,3.71458,2692.1,2691.8,3.0224]
[1739533641320,3.71472,2692.0,2691.8,3.0224]
[1739533641537,3.71472,2692.0,2691.8,3.0]
[1739533642635,3.71502,2691.8,2691.5,0.0224]
[1739533643043,3.71502,2691.8,2691.3,2.49221814]
[1739533643275,3.71502,2691.8,2691.4,3.0]
[1739533643652,3.71488,2691.9,2691.4,3.0]
[1739533643952,3.71488,2691.9,2691.3,6.83082395]
[1739533644151,3.71501,2691.8,2691.3,6.83082395]
[1739533644365,3.71501,2691.8,2691.4,3.6853224]
[1739533644562,0.7655,2692.3,2691.4,3.0]
[1739533644763,4.45586493,2692.5,2691.2,0.0224]
[1739533644764,7.43071,2691.6,2691.2,0.0224]
[1739533644961,3.71535,2691.6,2691.2,0.0224]
[1739533645296,7.4307,2691.6,2691.2,0.0224]
[1739533645444,3.71535,2691.6,2691.2,0.0224]
[1739533645636,3.71535,2691.6,2691.3,0.04591305]
[1739533645947,3.71535,2691.6,2691.2,0.0224]
[1739533646150,3.7154,2691.5,2691.4,0.04579051]
[1739533646465,3.71553,2691.4,2691.3,0.04591305]
[1739533646665,3.71553,2691.4,2690.9,3.0224]
[1739533647286,3.71581,2691.2,2690.9,3.0224]
[1739533647577,3.71581,2691.2,2690.9,3.0]
[1739533648378,0.7655,2691.3,2690.9,3.0]
[1739533648573,4.48077,2691.6,2690.9,4.79586381]
[1739533648834,3.71549,2691.5,2690.9,8.51196381]
[1739533649153,3.71557,2691.4,2690.9,8.51196381]
[1739533649355,3.71572,2691.3,2690.9,4.79586381]
[1739533649753,3.71557,2691.4,2690.9,8.51200381]
[1739533649986,3.71557,2691.4,2690.9,4.79586381]
[1739533650495,3.7158,2691.3,2690.9,4.79586381]
[1739533650699,3.71592,2691.2,2690.9,1.79586381]
[1739533650999,3.71596,2691.1,2690.8,3.0]
[1739533651395,3.71592,2691.2,2690.8,3.0]
[1739533654292,3.71589,2691.2,2690.8,3.0]
[1739533655798,7.43128,2691.4,2690.8,6.71629]
[1739533656011,3.71579,2691.3,2690.8,8.01178481]
[1739533656173,3.71582,2691.2,2690.8,4.29549481]
[1739533656378,3.71582,2691.2,2690.8,3.0]
[1739533657409,7.43175,2691.2,2690.8,3.0]
[1739533657568,3.71582,2691.2,2690.8,3.0]
[1739533660276,7.43174,2691.2,2690.8,3.0]
[1739533660489,3.71596,2691.1,2690.8,3.0]
[1739533660690,3.71596,2691.1,2690.9,0.04698249]
[1739533660892,3.71609,2691.0,2690.9,0.04698249]
[1739533661130,4.459296,2691.0,2690.6,0.0224]
[1739533661429,3.71632,2690.9,2690.7,0.04722767]
[1739533661965,7.43227,2691.0,2690.7,0.04722767]
[1739533662092,3.7161,2691.0,2690.7,0.04722767]
[1739533662526,3.71629,2690.9,2690.7,0.04722767]
[1739533662952,3.71585,2691.2,2690.7,0.04722767]
[1739533663115,3.71617,2691.0,2690.7,0.04722767]
[1739533663494,3.71629,2690.9,2690.7,0.04722767]
[1739533665935,4.165135,2691.2,2690.7,0.04722767]
[1739533666136,3.71609,2691.0,2690.7,0.04722767]
[1739533666566,3.71623,2690.9,2690.7,0.04722767]
[1739533666776,3.71609,2691.0,2690.7,0.04722767]
[1739533666948,3.71602,2691.1,2690.7,0.04722767]
[1739533667171,3.71604,2691.1,2690.7,0.04722767]
[1739533667398,3.71636,2690.8,2690.7,0.04722767]
[1739533667946,3.71636,2690.8,2690.4,5.49221814]
[1739533668280,3.71636,2690.8,2690.7,0.04722767]
[1739533668442,3.71636,2690.8,2690.4,5.49221814]
[1739533668639,3.71636,2690.8,2690.7,0.04722767]
[1739533668839,4.49273,2690.9,2690.4,5.49221814]
[1739533669144,3.71651,2690.7,2690.4,5.49221814]
[1739533672162,4.49273,2690.9,2690.4,5.49221814]
[1739533672407,4.47660429,2691.6,2690.6,2.49221814]
[1739533672408,0.7757,2691.5,2690.6,2.49221814]
[1739533672691,3.71547,2691.5,2691.0,2.51461814]
[1739533672839,3.71563,2691.4,2691.0,2.51461814]
[1739533674452,7.43126,2691.4,2691.0,2.51461814]
[1739533674651,7.43128,2691.4,2691.0,3.13769395]
[1739533675080,3.71563,2691.4,2691.0,3.13769395]
[1739533675695,3.71563,2691.4,2691.1,0.04699758]
[1739533676268,3.71581,2691.2,2691.1,0.04699758]
[1739533678517,4.49151,2691.2,2691.1,0.04699758]
[1739533678676,5.31223,2691.2,2690.6,8.75]
[1739533678880,7.43296,2690.8,2690.6,8.75]
[1739533679566,7.43295,2690.8,2690.6,8.75]
[1739533679768,3.7165,2690.7,2690.6,8.75]
[1739533681129,3.71612,2691.0,2690.6,8.75]
[1739533681302,3.71633,2690.9,2690.6,8.75]
[1739533681501,7.43212,2691.1,2690.6,9.87646181]
[1739533681823,3.71576,2691.3,2690.8,6.23096814]
[1739533681964,3.71576,2691.3,2690.9,6.71621]
[1739533682903,3.71589,2691.2,2690.9,3.0]
[1739533683203,3.71662,2690.7,2690.4,8.75]
[1739533683421,3.71661,2690.7,2690.3,0.0224]
[1739533683627,3.71672,2690.6,2690.3,3.0224]
[1739533684445,3.71672,2690.6,2690.3,0.0224]
[1739533684601,3.71691,2690.4,2689.9,2.51461814]
[1739533684798,3.7171,2690.3,2690.0,3.0]
[1739533685017,3.7171,2690.3,2689.9,2.51461814]
[1739533686278,3.71692,2690.4,2689.9,2.51461814]
[1739533686478,3.71692,2690.4,2689.9,6.23220814]
[1739533686778,3.71692,2690.4,2689.9,3.80960995]
[1739533687211,4.48653,2690.5,2689.9,3.80960995]
[1739533687603,3.71706,2690.3,2689.9,3.80960995]
[1739533688099,3.71646,2690.8,2690.2,2.49221814]
[1739533688279,3.71596,2691.1,2690.6,0.0224]
[1739533688474,3.98545,2691.5,2690.6,0.0224]
[1739533688475,3.71612,2691.0,2690.6,0.0224]
[1739533688698,3.71623,2690.9,2690.6,0.0224]
[1739533689149,3.71596,2691.1,2690.6,0.0224]
[1739533689437,3.71609,2691.0,2690.6,0.0224]
[1739533689650,0.7697,2691.3,2690.6,4.36212881]
[1739533689943,3.71561,2691.4,2690.9,3.71613]
[1739533690293,3.71554,2691.4,2691.1,0.0224]
[1739533690490,3.71577,2691.3,2691.1,0.0224]
[1739533690725,3.71577,2691.3,2691.2,0.04695135]
[1739533691972,5.228601,2691.3,2691.2,0.04695135]
[1739533692132,3.71542,2691.5,2690.8,2.51461814]
[1739533692316,3.71542,2691.5,2691.2,0.04675356]
[1739533692516,3.71567,2691.3,2690.9,3.0]
[1739533692812,3.71584,2691.2,2690.9,3.0]
[1739533693056,3.71609,2691.0,2690.5,2.51461814]
[1739533693211,3.71638,2690.8,2690.5,2.51461814]
[1739533693408,7.43288,2690.8,2690.6,3.0]
[1739533693608,3.71705,2690.3,2690.2,0.0224]
[1739533693865,3.71705,2690.3,2689.9,2.51461814]
[1739533694164,3.71723,2690.2,2689.9,0.0224]
[1739533694370,3.71723,2690.2,2689.8,3.0]
[1739533695276,3.71744,2690.1,2689.6,2.51461814]
[1739533695412,3.71744,2690.1,2689.6,3.16649295]
[1739533695612,7.43489,2690.1,2689.7,3.55]
[1739533695813,3.71744,2690.1,2689.7,3.55]
[1739533698146,3.71758,2690.0,2689.7,3.0]
[1739533699718,3.71744,2690.1,2689.7,3.0]
[1739533699924,3.71741,2690.1,2689.7,3.0]
[1739533700148,3.71756,2690.0,2689.7,3.0]
[1739533700567,7.43483,2690.1,2689.7,3.0]
[1739533700780,3.71754,2690.0,2689.7,3.0]
[1739533701223,3.71761,2689.9,2689.7,3.0]
[1739533703491,3.71761,2689.9,2689.6,2.51461814]
[1739533703492,3.71788,2689.7,2689.3,2.49221814]
[1739533703780,3.71788,2689.7,2689.3,5.49221814]
[1739533704668,3.71824,2689.5,2689.0,5.49221814]
[1739533704867,3.71824,2689.5,2689.1,6.7187]
[1739533705187,3.71824,2689.5,2689.0,9.21105814]
[1739533705329,3.71824,2689.5,2689.0,11.06591895]
[1739533705747,3.71824,2689.5,2689.1,0.04788212]
[1739533706054,3.71817,2689.5,2689.1,0.04788212]
[1739533706248,3.71839,2689.4,2689.1,0.04788212]
[1739533706669,3.71855,2689.3,2689.1,0.04788212]
[1739533706944,3.71821,2689.5,2688.5,0.0224]
[1739533707145,3.71899,2688.9,2688.5,0.0224]
[1739533707447,3.71899,2688.9,2688.6,0.04894025]
[1739533707655,3.71893,2689.0,2688.6,0.04894025]
[1739533708283,0.7706,2689.6,2688.7,2.49221814]